[Event "Titled Tuesday Blitz August 16 Late 2022"]
[White "Vagman, Roy"]
[Black "Barash, Anton"]
[WhiteFideId "2828995"]
[BlackFideId "30935229"]
[WhiteElo "1956"]
[BlackElo "2088"]
[Result "1/2-1/2"]
[Round "06"]
[TimeControl "180+1"]
[Date "2022.08.18"]
[WhiteClock "0:00:00"]
[BlackClock "0:00:00"]

1. d4 {[%clk 0:00:00]}  d5 {[%clk 0:00:00]} 2. c4 {[%clk 0:00:00]}  e6 {[%clk 0:00:00]} 3. Nc3 {[%clk 0:00:00]}  Be7 {[%clk 0:00:00]} 4. Nf3 {[%clk 0:00:00]}  Nf6 {[%clk 0:00:00]} 5. e3 {[%clk 0:00:00]}  O-O {[%clk 0:00:00]} 6. Qa4 {[%clk 0:00:00]}  b6 {[%clk 0:00:00]} 7. cxd5 {[%clk 0:00:00]}  exd5 {[%clk 0:00:00]} 8. Bd3 {[%clk 0:00:00]}  Bb7 {[%clk 0:00:00]} 9. O-O {[%clk 0:00:00]}  c5 {[%clk 0:00:00]} 10. Ne5 {[%clk 0:00:00]}  Nbd7 {[%clk 0:00:00]} 11. f4 {[%clk 0:00:00]}  Qc7 {[%clk 0:00:00]} 12. Qc2 {[%clk 0:00:00]}  Ne4 {[%clk 0:00:00]} 13. Nxd5 {[%clk 0:00:00]}  Bxd5 {[%clk 0:00:00]} 14. Bxe4 {[%clk 0:00:00]}  Nf6 {[%clk 0:00:00]} 15. Bxd5 {[%clk 0:00:00]}  Nxd5 {[%clk 0:00:00]} 16. dxc5 {[%clk 0:00:00]}  Bxc5 {[%clk 0:00:00]} 17. Qb3 {[%clk 0:00:00]}  Nxf4 {[%clk 0:00:00]} 18. Rxf4 {[%clk 0:00:00]}  Qxe5 {[%clk 0:00:00]} 19. Rf3 {[%clk 0:00:00]}  Rad8 {[%clk 0:00:00]} 20. Qc2 {[%clk 0:00:00]}  Qd5 {[%clk 0:00:00]} 21. h4 {[%clk 0:00:00]}  Qd1+ {[%clk 0:00:00]} 22. Qxd1 {[%clk 0:00:00]}  Rxd1+ {[%clk 0:00:00]} 23. Rf1 {[%clk 0:00:00]}  Rfd8 {[%clk 0:00:00]} 24. b3 {[%clk 0:00:00]}  R8d3 {[%clk 0:00:00]} 25. Rxd1 {[%clk 0:00:00]}  Rxd1+ {[%clk 0:00:00]} 26. Kf2 {[%clk 0:00:00]}  Ba3 {[%clk 0:00:00]} 27. Bb2 {[%clk 0:00:00]}  Rxa1 {[%clk 0:00:00]} 28. Bxa1 {[%clk 0:00:00]}  f6 {[%clk 0:00:00]} 29. Kf3 {[%clk 0:00:00]}  Kf7 {[%clk 0:00:00]} 30. Ke4 {[%clk 0:00:00]}  Ke6 {[%clk 0:00:00]} 31. g4 {[%clk 0:00:00]}  Bc5 {[%clk 0:00:00]} 32. h5 {[%clk 0:00:00]}  g6 {[%clk 0:00:00]} 33. hxg6 {[%clk 0:00:00]}  hxg6 {[%clk 0:00:00]} 34. Bc3 {[%clk 0:00:00]}  f5+ {[%clk 0:00:00]} 35. gxf5+ {[%clk 0:00:00]}  gxf5+ {[%clk 0:00:00]} 36. Kf4 {[%clk 0:00:00]}  Bd6+ {[%clk 0:00:00]} 37. Kg5 {[%clk 0:00:00]}  Be5 {[%clk 0:00:00]} 38. Be1 {[%clk 0:00:00]}  Bf6+ {[%clk 0:00:00]} 39. Kf4 {[%clk 0:00:00]}  Be5+ {[%clk 0:00:00]} 40. Kf3 {[%clk 0:00:00]}  Bb2 {[%clk 0:00:00]} 41. e4 {[%clk 0:00:00]}  b5 {[%clk 0:00:00]} 42. Ke3 {[%clk 0:00:00]}  fxe4 {[%clk 0:00:00]} 43. Kxe4 {[%clk 0:00:00]}  a6 {[%clk 0:00:00]} 44. Bf2 {[%clk 0:00:00]}  Bg7 {[%clk 0:00:00]} 45. Bg3 {[%clk 0:00:00]}  Bh8 {[%clk 0:00:00]} 46. Bf2 {[%clk 0:00:00]}  Ba1 {[%clk 0:00:00]} 47. Bd4 {[%clk 0:00:00]}  Bxd4 {[%clk 0:00:00]} 48. Kxd4 {[%clk 0:00:00]}  Kd6 {[%clk 0:00:00]} 49. b4 {[%clk 0:00:00]}  Kc6 {[%clk 0:00:00]} 50. Ke5 {[%clk 0:00:00]}  Kb6 {[%clk 0:00:00]} 51. Kd6 {[%clk 0:00:00]}  a5 {[%clk 0:00:00]} 52. a3 {[%clk 0:00:00]}  axb4 {[%clk 0:00:00]} 53. axb4 {[%clk 0:00:00]}  Ka6 {[%clk 0:00:00]} 54. Kc5 {[%clk 0:00:00]}  Ka7 {[%clk 0:00:00]} 55. Kc6 {[%clk 0:00:00]}  Ka6 {[%clk 0:00:00]} 56. Kd5 {[%clk 0:00:00]}  Ka7 {[%clk 0:00:00]} 57. Kd6 {[%clk 0:00:00]}  Kb8 {[%clk 0:00:00]} 58. Kc6 {[%clk 0:00:00]}  Ka8 {[%clk 0:00:00]} 59. Kd5 {[%clk 0:00:00]}  Kb8 {[%clk 0:00:00]} 60. Kd4 {[%clk 0:00:00]}  Ka8 {[%clk 0:00:00]} 61. Kc5 {[%clk 0:00:00]}  Kb8 {[%clk 0:00:00]} 62. Kxb5 {[%clk 0:00:00]}  Kb7 {[%clk 0:00:00]} 63. Kc4 {[%clk 0:00:00]}  Kc6 {[%clk 0:00:00]} 64. Kb3 {[%clk 0:00:00]}  Kb5 {[%clk 0:00:00]} 65. Ka3 {[%clk 0:00:00]}  Kb6 {[%clk 0:00:00]} 66. Kb3 {[%clk 0:00:00]}  Kb5 {[%clk 0:00:00]} 67. Kc3 {[%clk 0:00:00]}  Kb6 {[%clk 0:00:00]} 68. Kc4 {[%clk 0:00:00]}  Kc6 {[%clk 0:00:00]} 69. b5+ {[%clk 0:00:00]}  Kb6 {[%clk 0:00:00]} 70. Kb4 {[%clk 0:00:00]}  Kb7 {[%clk 0:00:00]} 71. Ka5 {[%clk 0:00:00]}  Ka7 {[%clk 0:00:00]} 72. Ka4 {[%clk 0:00:00]}  Kb6 {[%clk 0:00:00]} 73. Kb4 {[%clk 0:00:00]}  Kb7 {[%clk 0:00:00]} 74. Kc5 {[%clk 0:00:00]}  Kc7 {[%clk 0:00:00]} 75. Kb4 {[%clk 0:00:00]}  Kb6 {[%clk 0:00:00]} 76. Kc4 {[%clk 0:00:00]}  Kb7 {[%clk 0:00:00]} 77. Kc5 {[%clk 0:00:00]}  Kc7 {[%clk 0:00:00]} 78. b6+ {[%clk 0:00:00]}  Kb7 {[%clk 0:00:00]} 79. Kb5 {[%clk 0:00:00]}  Kb8 {[%clk 0:00:00]} 80. Kc6 {[%clk 0:00:00]}  Kc8 {[%clk 0:00:00]} 81. Kd6 {[%clk 0:00:00]}  Kb7 {[%clk 0:00:00]} 82. Kc5 {[%clk 0:00:00]}  Kb8 {[%clk 0:00:00]} 83. Kc6 {[%clk 0:00:00]}  Kc8 {[%clk 0:00:00]} 84. Kb5 {[%clk 0:00:00]}  Kb7 {[%clk 0:00:00]} 85. Ka5 {[%clk 0:00:00]}  Kb8 {[%clk 0:00:00]} 86. Kb5 {[%clk 0:00:00]}  Kb7 {[%clk 0:00:00]} 87. Kb4 {[%clk 0:00:00]}  Kxb6 {[%clk 0:00:00]} 1/2-1/2


[Site "https://www.chess.com"]

[Event "Titled Tuesday Blitz August 16 Late 2022"]
[White "Wiewiora, Eneasz"]
[Black "Tristan, Leonardo"]
[WhiteFideId "1140396"]
[BlackFideId "113816"]
[WhiteElo "2291"]
[BlackElo "2404"]
[Result "0-1"]
[Round "06"]
[TimeControl "180+1"]
[Date "2022.08.16"]
[WhiteClock "0:00:58"]
[BlackClock "0:00:49"]

1. e4 {[%clk 0:03:00]}  d5 {[%clk 0:03:00]} 2. exd5 {[%clk 0:03:00]}  Qxd5 {[%clk 0:03:01]} 3. Nc3 {[%clk 0:03:00]}  Qa5 {[%clk 0:03:00]} 4. d4 {[%clk 0:03:00]}  Nf6 {[%clk 0:03:01]} 5. Bc4 {[%clk 0:03:00]}  Bg4 {[%clk 0:03:01]} 6. Nf3 {[%clk 0:02:59]}  Nc6 {[%clk 0:03:00]} 7. h3 {[%clk 0:02:58]}  Bxf3 {[%clk 0:02:54]} 8. Qxf3 {[%clk 0:02:59]}  O-O-O {[%clk 0:02:51]} 9. d5 {[%clk 0:02:50]}  Nd4 {[%clk 0:02:48]} 10. Qd3 {[%clk 0:02:45]}  e5 {[%clk 0:02:46]} 11. O-O {[%clk 0:02:44]}  Bb4 {[%clk 0:02:14]} 12. Bg5 {[%clk 0:02:40]}  Kb8 {[%clk 0:02:04]} 13. Bxf6 {[%clk 0:02:36]}  gxf6 {[%clk 0:02:04]} 14. Ne4 {[%clk 0:02:37]}  f5 {[%clk 0:02:01]} 15. Ng5 {[%clk 0:02:24]}  Rhg8 {[%clk 0:01:26]} 16. Nxf7 {[%clk 0:02:22]}  Rxd5 {[%clk 0:01:27]} 17. c3 {[%clk 0:01:59]}  e4 {[%clk 0:01:24]} 18. cxb4 {[%clk 0:01:53]}  Qb6 {[%clk 0:01:08]} 19. Qe3 {[%clk 0:01:28]}  Qg6 {[%clk 0:01:07]} 20. Ng5 {[%clk 0:01:21]}  f4 {[%clk 0:00:50]} 21. Qxe4 {[%clk 0:01:20]}  Rxg5 {[%clk 0:00:50]} 22. Qxg6 {[%clk 0:01:02]}  R8xg6 {[%clk 0:00:51]} 23. Bd5 {[%clk 0:00:58]}  Rxd5 {[%clk 0:00:49]} 0-1


[Site "https://www.chess.com"]

[Event "Titled Tuesday Blitz August 16 Late 2022"]
[White "Zamorano, Jorge"]
[Black "Voege, Tobias"]
[WhiteFideId "173770"]
[BlackFideId "1270513"]
[WhiteElo "2331"]
[BlackElo "2360"]
[Result "1-0"]
[Round "06"]
[TimeControl "180+1"]
[Date "2022.08.16"]
[WhiteClock "0:00:06"]
[BlackClock "0:00:02"]

1. e4 {[%clk 0:03:00]}  c5 {[%clk 0:02:59]} 2. Nf3 {[%clk 0:02:52]}  Nc6 {[%clk 0:02:59]} 3. Bb5 {[%clk 0:02:43]}  Na5 {[%clk 0:02:58]} 4. O-O {[%clk 0:02:34]}  a6 {[%clk 0:02:57]} 5. Be2 {[%clk 0:02:34]}  b5 {[%clk 0:02:55]} 6. a4 {[%clk 0:02:22]}  b4 {[%clk 0:02:38]} 7. d4 {[%clk 0:02:10]}  e6 {[%clk 0:02:22]} 8. d5 {[%clk 0:02:00]}  Nf6 {[%clk 0:02:07]} 9. Bg5 {[%clk 0:01:49]}  h6 {[%clk 0:02:02]} 10. Bxf6 {[%clk 0:01:49]}  gxf6 {[%clk 0:01:50]} 11. Nbd2 {[%clk 0:01:48]}  Qc7 {[%clk 0:01:38]} 12. c3 {[%clk 0:01:45]}  bxc3 {[%clk 0:01:19]} 13. bxc3 {[%clk 0:01:46]}  Bd6 {[%clk 0:01:17]} 14. Nc4 {[%clk 0:01:39]}  Nxc4 {[%clk 0:01:06]} 15. Bxc4 {[%clk 0:01:40]}  Rg8 {[%clk 0:00:51]} 16. a5 {[%clk 0:01:34]}  Be5 {[%clk 0:00:45]} 17. Qd3 {[%clk 0:01:34]}  d6 {[%clk 0:00:38]} 18. Rfb1 {[%clk 0:01:26]}  Ke7 {[%clk 0:00:30]} 19. Rb6 {[%clk 0:01:22]}  Rb8 {[%clk 0:00:20]} 20. Rab1 {[%clk 0:01:20]}  Rxb6 {[%clk 0:00:20]} 21. Rxb6 {[%clk 0:01:12]}  Bd7 {[%clk 0:00:20]} 22. Nxe5 {[%clk 0:00:51]}  fxe5 {[%clk 0:00:21]} 23. Qb1 {[%clk 0:00:45]}  Rg6 {[%clk 0:00:16]} 24. Rxa6 {[%clk 0:00:36]}  Rg8 {[%clk 0:00:14]} 25. Qb6 {[%clk 0:00:30]}  Qxb6 {[%clk 0:00:13]} 26. Rxb6 {[%clk 0:00:31]}  Ra8 {[%clk 0:00:13]} 27. a6 {[%clk 0:00:31]}  Bc8 {[%clk 0:00:09]} 28. f3 {[%clk 0:00:21]}  Ra7 {[%clk 0:00:09]} 29. Kf2 {[%clk 0:00:22]}  Kd7 {[%clk 0:00:07]} 30. Kg3 {[%clk 0:00:19]}  exd5 {[%clk 0:00:06]} 31. Bxd5 {[%clk 0:00:16]}  Rxa6 {[%clk 0:00:05]} 32. Rxa6 {[%clk 0:00:16]}  Bxa6 {[%clk 0:00:06]} 33. Bxf7 {[%clk 0:00:17]}  Ke7 {[%clk 0:00:06]} 34. Bd5 {[%clk 0:00:16]}  Kf6 {[%clk 0:00:07]} 35. Kh4 {[%clk 0:00:16]}  Bf1 {[%clk 0:00:07]} 36. Kg3 {[%clk 0:00:15]}  Bd3 {[%clk 0:00:06]} 37. Kf2 {[%clk 0:00:16]}  Kg5 {[%clk 0:00:05]} 38. g3 {[%clk 0:00:16]}  Kf6 {[%clk 0:00:04]} 39. Ke3 {[%clk 0:00:16]}  Bb5 {[%clk 0:00:04]} 40. f4 {[%clk 0:00:15]}  Bf1 {[%clk 0:00:04]} 41. h4 {[%clk 0:00:14]}  Bh3 {[%clk 0:00:02]} 42. Bc4 {[%clk 0:00:14]}  Bg4 {[%clk 0:00:02]} 43. Be2 {[%clk 0:00:14]}  Bd7 {[%clk 0:00:01]} 44. Kd2 {[%clk 0:00:13]}  Be6 {[%clk 0:00:01]} 45. Bf3 {[%clk 0:00:13]}  Bf7 {[%clk 0:00:02]} 46. Kd3 {[%clk 0:00:13]}  Be6 {[%clk 0:00:02]} 47. Ke3 {[%clk 0:00:14]}  Bc4 {[%clk 0:00:02]} 48. g4 {[%clk 0:00:14]}  exf4+ {[%clk 0:00:02]} 49. Kxf4 {[%clk 0:00:15]}  Bf7 {[%clk 0:00:02]} 50. g5+ {[%clk 0:00:15]}  hxg5+ {[%clk 0:00:03]} 51. hxg5+ {[%clk 0:00:16]}  Kg7 {[%clk 0:00:02]} 52. Bg4 {[%clk 0:00:14]}  Bg8 {[%clk 0:00:02]} 53. Bf5 {[%clk 0:00:15]}  Bf7 {[%clk 0:00:03]} 54. e5 {[%clk 0:00:15]}  dxe5+ {[%clk 0:00:02]} 55. Kxe5 {[%clk 0:00:16]}  Bb3 {[%clk 0:00:02]} 56. Kd6 {[%clk 0:00:16]}  c4 {[%clk 0:00:02]} 57. Kc5 {[%clk 0:00:16]}  Ba2 {[%clk 0:00:02]} 58. Be4 {[%clk 0:00:14]}  Kf7 {[%clk 0:00:02]} 59. Bd5+ {[%clk 0:00:14]}  Kg6 {[%clk 0:00:03]} 60. Bxc4 {[%clk 0:00:14]}  Bb1 {[%clk 0:00:03]} 61. Kd6 {[%clk 0:00:14]}  Kxg5 {[%clk 0:00:03]} 62. Bd5 {[%clk 0:00:07]}  Kf4 {[%clk 0:00:02]} 63. c4 {[%clk 0:00:07]}  Ke3 {[%clk 0:00:02]} 64. c5 {[%clk 0:00:08]}  Bd3 {[%clk 0:00:02]} 65. c6 {[%clk 0:00:08]}  Ba6 {[%clk 0:00:02]} 66. c7 {[%clk 0:00:08]}  Kd4 {[%clk 0:00:02]} 67. Kc6 {[%clk 0:00:06]}  Bc8 {[%clk 0:00:02]} 68. Kd6 {[%clk 0:00:04]}  Ba6 {[%clk 0:00:03]} 69. Be6 {[%clk 0:00:05]}  Ke4 {[%clk 0:00:02]} 70. Kc6 {[%clk 0:00:05]}  Kd4 {[%clk 0:00:02]} 71. Kb6 {[%clk 0:00:06]} 1-0


[Site "https://www.chess.com"]

[Event "Titled Tuesday Blitz August 16 Late 2022"]
[White "Zanette, Edgard Vinicius"]
[Black "Kostiukov, Alexandr"]
[WhiteFideId "2109263"]
[BlackFideId "14108100"]
[WhiteElo "2182"]
[BlackElo "2202"]
[Result "0-1"]
[Round "06"]
[TimeControl "180+1"]
[Date "2022.08.18"]
[WhiteClock "0:00:00"]
[BlackClock "0:00:00"]

1. e4 {[%clk 0:00:00]}  c5 {[%clk 0:00:00]} 2. Nc3 {[%clk 0:00:00]}  g6 {[%clk 0:00:00]} 3. f4 {[%clk 0:00:00]}  Bg7 {[%clk 0:00:00]} 4. Nf3 {[%clk 0:00:00]}  Nc6 {[%clk 0:00:00]} 5. Bb5 {[%clk 0:00:00]}  Nd4 {[%clk 0:00:00]} 6. O-O {[%clk 0:00:00]}  e6 {[%clk 0:00:00]} 7. Nxd4 {[%clk 0:00:00]}  cxd4 {[%clk 0:00:00]} 8. Ne2 {[%clk 0:00:00]}  Ne7 {[%clk 0:00:00]} 9. Bd3 {[%clk 0:00:00]}  O-O {[%clk 0:00:00]} 10. b3 {[%clk 0:00:00]}  d6 {[%clk 0:00:00]} 11. Bb2 {[%clk 0:00:00]}  e5 {[%clk 0:00:00]} 12. h3 {[%clk 0:00:00]}  f5 {[%clk 0:00:00]} 13. Qe1 {[%clk 0:00:00]}  fxe4 {[%clk 0:00:00]} 14. Bxe4 {[%clk 0:00:00]}  d5 {[%clk 0:00:00]} 15. Bf3 {[%clk 0:00:00]}  e4 {[%clk 0:00:00]} 16. Bg4 {[%clk 0:00:00]}  d3 {[%clk 0:00:00]} 17. Nd4 {[%clk 0:00:00]}  dxc2 {[%clk 0:00:00]} 18. Rc1 {[%clk 0:00:00]}  Nf5 {[%clk 0:00:00]} 19. Bxf5 {[%clk 0:00:00]}  gxf5 {[%clk 0:00:00]} 20. Rxc2 {[%clk 0:00:00]}  Bd7 {[%clk 0:00:00]} 21. Kh1 {[%clk 0:00:00]}  Rc8 {[%clk 0:00:00]} 22. Rxc8 {[%clk 0:00:00]}  Bxc8 {[%clk 0:00:00]} 23. Qe3 {[%clk 0:00:00]}  Qb6 {[%clk 0:00:00]} 24. Rc1 {[%clk 0:00:00]}  Bd7 {[%clk 0:00:00]} 25. Bc3 {[%clk 0:00:00]}  Kh8 {[%clk 0:00:00]} 26. Rg1 {[%clk 0:00:00]}  Qh6 {[%clk 0:00:00]} 27. g3 {[%clk 0:00:00]}  Qxh3# {[%clk 0:00:00]} 0-1


[Site "https://www.chess.com"]

[Event "Titled Tuesday Blitz August 16 Late 2022"]
[White "Zivkovic, Nemanja"]
[Black "Pichot, Alan"]
[WhiteFideId "942154"]
[BlackFideId "110973"]
[WhiteElo "2372"]
[BlackElo "2578"]
[Result "1/2-1/2"]
[Round "06"]
[TimeControl "180+1"]
[Date "2022.08.16"]
[WhiteClock "0:00:08"]
[BlackClock "0:00:11"]

1. c4 {[%clk 0:02:55]}  c5 {[%clk 0:02:58]} 2. Nc3 {[%clk 0:02:55]}  Nc6 {[%clk 0:02:58]} 3. g3 {[%clk 0:02:55]}  g6 {[%clk 0:02:59]} 4. Bg2 {[%clk 0:02:56]}  Bg7 {[%clk 0:02:59]} 5. d3 {[%clk 0:02:56]}  Nh6 {[%clk 0:02:59]} 6. Nf3 {[%clk 0:02:57]}  Nf5 {[%clk 0:03:00]} 7. O-O {[%clk 0:02:56]}  O-O {[%clk 0:02:58]} 8. Bd2 {[%clk 0:02:55]}  e6 {[%clk 0:02:52]} 9. Rb1 {[%clk 0:02:46]}  d5 {[%clk 0:02:49]} 10. cxd5 {[%clk 0:02:45]}  exd5 {[%clk 0:02:49]} 11. a3 {[%clk 0:02:45]}  b6 {[%clk 0:02:45]} 12. b4 {[%clk 0:02:43]}  cxb4 {[%clk 0:02:45]} 13. axb4 {[%clk 0:02:43]}  Bb7 {[%clk 0:02:46]} 14. b5 {[%clk 0:02:35]}  Ncd4 {[%clk 0:02:37]} 15. Nxd4 {[%clk 0:02:29]}  Nxd4 {[%clk 0:02:38]} 16. e3 {[%clk 0:02:29]}  Ne6 {[%clk 0:02:37]} 17. d4 {[%clk 0:02:25]}  Qd7 {[%clk 0:02:37]} 18. Ne2 {[%clk 0:02:15]}  h5 {[%clk 0:02:35]} 19. h3 {[%clk 0:02:06]}  Rfd8 {[%clk 0:02:34]} 20. Qb3 {[%clk 0:02:05]}  Bf8 {[%clk 0:02:32]} 21. Rfc1 {[%clk 0:02:01]}  Kh7 {[%clk 0:02:27]} 22. Rc2 {[%clk 0:01:54]}  a5 {[%clk 0:02:00]} 23. bxa6 {[%clk 0:01:53]}  Bxa6 {[%clk 0:02:01]} 24. Nc3 {[%clk 0:01:34]}  Nc7 {[%clk 0:01:51]} 25. Qxb6 {[%clk 0:01:10]}  Bd3 {[%clk 0:01:49]} 26. Rcb2 {[%clk 0:01:09]}  Bxb1 {[%clk 0:01:48]} 27. Rxb1 {[%clk 0:01:10]}  Rab8 {[%clk 0:01:30]} 28. Qxb8 {[%clk 0:01:03]}  Rxb8 {[%clk 0:01:31]} 29. Rxb8 {[%clk 0:01:03]}  Bd6 {[%clk 0:01:31]} 30. Be1 {[%clk 0:00:57]}  Qc6 {[%clk 0:01:25]} 31. Bf3 {[%clk 0:00:51]}  Qd7 {[%clk 0:01:14]} 32. Kg2 {[%clk 0:00:51]}  Ne6 {[%clk 0:01:15]} 33. Rb5 {[%clk 0:00:49]}  Ng5 {[%clk 0:01:14]} 34. Bxd5 {[%clk 0:00:43]}  Qxh3+ {[%clk 0:01:11]} 35. Kg1 {[%clk 0:00:43]}  h4 {[%clk 0:00:56]} 36. Bg2 {[%clk 0:00:42]}  Qg4 {[%clk 0:00:56]} 37. Rxg5 {[%clk 0:00:33]}  Qxg5 {[%clk 0:00:54]} 38. Ne4 {[%clk 0:00:34]}  Qe7 {[%clk 0:00:53]} 39. Nxd6 {[%clk 0:00:24]}  Qxd6 {[%clk 0:00:54]} 40. gxh4 {[%clk 0:00:25]}  Qe7 {[%clk 0:00:52]} 41. h5 {[%clk 0:00:23]}  gxh5 {[%clk 0:00:52]} 42. e4 {[%clk 0:00:24]}  Qg5 {[%clk 0:00:48]} 43. d5 {[%clk 0:00:19]}  h4 {[%clk 0:00:48]} 44. Kh2 {[%clk 0:00:17]}  Qc1 {[%clk 0:00:43]} 45. Bb4 {[%clk 0:00:15]}  Qb2 {[%clk 0:00:40]} 46. Bc5 {[%clk 0:00:14]}  Qe5+ {[%clk 0:00:32]} 47. Kh3 {[%clk 0:00:14]}  Kg6 {[%clk 0:00:26]} 48. Be3 {[%clk 0:00:13]}  Qa1 {[%clk 0:00:19]} 49. Kxh4 {[%clk 0:00:12]}  Qd1 {[%clk 0:00:16]} 50. Kg3 {[%clk 0:00:12]}  f5 {[%clk 0:00:15]} 51. exf5+ {[%clk 0:00:10]}  Kxf5 {[%clk 0:00:16]} 52. Bh3+ {[%clk 0:00:10]}  Ke5 {[%clk 0:00:17]} 53. Bg2 {[%clk 0:00:11]}  Qh5 {[%clk 0:00:16]} 54. Bf3 {[%clk 0:00:11]}  Qg6+ {[%clk 0:00:16]} 55. Kh2 {[%clk 0:00:11]}  Qh7+ {[%clk 0:00:16]} 56. Kg3 {[%clk 0:00:11]}  Qd3 {[%clk 0:00:16]} 57. Kg2 {[%clk 0:00:11]}  Qg6+ {[%clk 0:00:15]} 58. Kh3 {[%clk 0:00:12]}  Qg8 {[%clk 0:00:15]} 59. Kh2 {[%clk 0:00:09]}  Qg6 {[%clk 0:00:14]} 60. Kh3 {[%clk 0:00:09]}  Kf5 {[%clk 0:00:12]} 61. Kh2 {[%clk 0:00:08]}  Ke5 {[%clk 0:00:11]} 62. Kh3 {[%clk 0:00:08]} 1/2-1/2


[Site "https://www.chess.com"]

[Event "Titled Tuesday Blitz August 16 Late 2022"]
[White "Zou, Chen"]
[Black "Chernomordik, Pavel"]
[WhiteFideId "8610959"]
[BlackFideId "2804530"]
[WhiteElo "2276"]
[BlackElo "2217"]
[Result "1-0"]
[Round "06"]
[TimeControl "180+1"]
[Date "2022.08.16"]
[WhiteClock "0:00:14"]
[BlackClock "0:00:01"]

1. d4 {[%clk 0:03:00]}  g6 {[%clk 0:02:59]} 2. Nf3 {[%clk 0:02:57]}  Bg7 {[%clk 0:02:59]} 3. c4 {[%clk 0:02:57]}  d6 {[%clk 0:02:58]} 4. Nc3 {[%clk 0:02:57]}  Nc6 {[%clk 0:02:58]} 5. g3 {[%clk 0:02:49]}  e5 {[%clk 0:02:57]} 6. d5 {[%clk 0:02:45]}  e4 {[%clk 0:02:57]} 7. dxc6 {[%clk 0:02:34]}  exf3 {[%clk 0:02:56]} 8. cxb7 {[%clk 0:02:05]}  Bxb7 {[%clk 0:02:49]} 9. exf3 {[%clk 0:02:05]}  Qe7+ {[%clk 0:02:44]} 10. Be3 {[%clk 0:02:03]}  Nh6 {[%clk 0:02:41]} 11. Bh3 {[%clk 0:02:01]}  O-O {[%clk 0:02:22]} 12. O-O {[%clk 0:02:01]}  f5 {[%clk 0:02:16]} 13. Nd5 {[%clk 0:01:53]}  Qf7 {[%clk 0:02:15]} 14. Bg2 {[%clk 0:01:42]}  Kh8 {[%clk 0:02:06]} 15. Qd2 {[%clk 0:01:37]}  Ng8 {[%clk 0:02:05]} 16. Rac1 {[%clk 0:01:28]}  Nf6 {[%clk 0:02:00]} 17. f4 {[%clk 0:01:23]}  Ne4 {[%clk 0:01:58]} 18. Bxe4 {[%clk 0:01:16]}  fxe4 {[%clk 0:01:57]} 19. Bd4 {[%clk 0:01:15]}  c5 {[%clk 0:01:48]} 20. Bxg7+ {[%clk 0:01:13]}  Kxg7 {[%clk 0:01:44]} 21. Ne3 {[%clk 0:01:11]}  Rad8 {[%clk 0:01:40]} 22. Rfd1 {[%clk 0:01:08]}  h6 {[%clk 0:01:36]} 23. b4 {[%clk 0:00:59]}  g5 {[%clk 0:01:22]} 24. f5 {[%clk 0:00:58]}  Qf6 {[%clk 0:01:09]} 25. a3 {[%clk 0:00:50]}  h5 {[%clk 0:01:07]} 26. bxc5 {[%clk 0:00:45]}  dxc5 {[%clk 0:01:06]} 27. Qa5 {[%clk 0:00:46]}  Bc8 {[%clk 0:00:45]} 28. Qxa7+ {[%clk 0:00:41]}  Kh6 {[%clk 0:00:44]} 29. Qxc5 {[%clk 0:00:40]}  Rd3 {[%clk 0:00:37]} 30. Rxd3 {[%clk 0:00:19]}  exd3 {[%clk 0:00:37]} 31. Rd1 {[%clk 0:00:19]}  Rd8 {[%clk 0:00:36]} 32. Nd5 {[%clk 0:00:19]}  Qd6 {[%clk 0:00:15]} 33. Qxd6+ {[%clk 0:00:18]}  Rxd6 {[%clk 0:00:14]} 34. Rxd3 {[%clk 0:00:19]}  Bxf5 {[%clk 0:00:14]} 35. Rd1 {[%clk 0:00:19]}  Be4 {[%clk 0:00:10]} 36. Nc3 {[%clk 0:00:16]}  Rxd1+ {[%clk 0:00:06]} 37. Nxd1 {[%clk 0:00:17]}  Kg6 {[%clk 0:00:05]} 38. Ne3 {[%clk 0:00:14]}  Kf6 {[%clk 0:00:04]} 39. Kf1 {[%clk 0:00:13]}  Ke5 {[%clk 0:00:03]} 40. Ke1 {[%clk 0:00:14]}  Kd4 {[%clk 0:00:03]} 41. Kd2 {[%clk 0:00:14]}  h4 {[%clk 0:00:01]} 42. a4 {[%clk 0:00:14]} 1-0


[Site "https://www.chess.com"]

[Event "Titled Tuesday Blitz August 16 Late 2022"]
[White "Adewumi, Tanitoluwa"]
[Black "Melikhov, Evgeny V."]
[WhiteFideId "30966396"]
[BlackFideId "4122046"]
[WhiteElo "2302"]
[BlackElo "1963"]
[Result "1-0"]
[Round "07"]
[TimeControl "180+1"]
[Date "2022.08.18"]
[WhiteClock "0:00:00"]
[BlackClock "0:00:00"]

1. e4 {[%clk 0:00:00]}  e5 {[%clk 0:00:00]} 2. Nf3 {[%clk 0:00:00]}  Nc6 {[%clk 0:00:00]} 3. Bc4 {[%clk 0:00:00]}  Nf6 {[%clk 0:00:00]} 4. d3 {[%clk 0:00:00]}  Be7 {[%clk 0:00:00]} 5. O-O {[%clk 0:00:00]}  d6 {[%clk 0:00:00]} 6. c3 {[%clk 0:00:00]}  O-O {[%clk 0:00:00]} 7. Re1 {[%clk 0:00:00]}  Na5 {[%clk 0:00:00]} 8. Bb5 {[%clk 0:00:00]}  a6 {[%clk 0:00:00]} 9. Ba4 {[%clk 0:00:00]}  b5 {[%clk 0:00:00]} 10. Bc2 {[%clk 0:00:00]}  c5 {[%clk 0:00:00]} 11. Nbd2 {[%clk 0:00:00]}  Bb7 {[%clk 0:00:00]} 12. h3 {[%clk 0:00:00]}  Re8 {[%clk 0:00:00]} 13. Nf1 {[%clk 0:00:00]}  Bf8 {[%clk 0:00:00]} 14. Bg5 {[%clk 0:00:00]}  h6 {[%clk 0:00:00]} 15. Bxf6 {[%clk 0:00:00]}  Qxf6 {[%clk 0:00:00]} 16. Ne3 {[%clk 0:00:00]}  c4 {[%clk 0:00:00]} 17. a4 {[%clk 0:00:00]}  Bc6 {[%clk 0:00:00]} 18. axb5 {[%clk 0:00:00]}  axb5 {[%clk 0:00:00]} 19. d4 {[%clk 0:00:00]}  exd4 {[%clk 0:00:00]} 20. Nxd4 {[%clk 0:00:00]}  Bxe4 {[%clk 0:00:00]} 21. Ng4 {[%clk 0:00:00]}  Qg6 {[%clk 0:00:00]} 22. Rxe4 {[%clk 0:00:00]}  Rxe4 {[%clk 0:00:00]} 23. Nc6 {[%clk 0:00:00]}  Re1+ {[%clk 0:00:00]} 24. Qxe1 {[%clk 0:00:00]}  Qxc2 {[%clk 0:00:00]} 25. Nxa5 {[%clk 0:00:00]}  Qxb2 {[%clk 0:00:00]} 26. Ne3 {[%clk 0:00:00]}  d5 {[%clk 0:00:00]} 27. Rb1 {[%clk 0:00:00]}  Qa2 {[%clk 0:00:00]} 28. Nc6 {[%clk 0:00:00]}  Bc5 {[%clk 0:00:00]} 29. Rxb5 {[%clk 0:00:00]}  Qa3 {[%clk 0:00:00]} 30. Nxd5 {[%clk 0:00:00]}  Rd8 {[%clk 0:00:00]} 31. Qe4 {[%clk 0:00:00]}  Qc1+ {[%clk 0:00:00]} 32. Kh2 {[%clk 0:00:00]}  Bd6+ {[%clk 0:00:00]} 33. g3 {[%clk 0:00:00]}  Qd2 {[%clk 0:00:00]} 34. Qg2 {[%clk 0:00:00]}  Re8 {[%clk 0:00:00]} 35. Ne3 {[%clk 0:00:00]}  Bc7 {[%clk 0:00:00]} 36. Rd5 {[%clk 0:00:00]}  Qb2 {[%clk 0:00:00]} 37. Nxc4 {[%clk 0:00:00]}  Qxc3 {[%clk 0:00:00]} 38. Ne3 {[%clk 0:00:00]}  Bb6 {[%clk 0:00:00]} 39. Ne5 {[%clk 0:00:00]}  Rxe5 {[%clk 0:00:00]} 40. Rxe5 {[%clk 0:00:00]}  Qxe5 {[%clk 0:00:00]} 41. Nc4 {[%clk 0:00:00]}  Qc5 {[%clk 0:00:00]} 42. Qa8+ {[%clk 0:00:00]}  Kh7 {[%clk 0:00:00]} 43. Nxb6 {[%clk 0:00:00]}  Qxb6 {[%clk 0:00:00]} 44. Qe4+ {[%clk 0:00:00]}  g6 {[%clk 0:00:00]} 45. Qf3 {[%clk 0:00:00]}  Kg7 {[%clk 0:00:00]} 46. Kg2 {[%clk 0:00:00]}  h5 {[%clk 0:00:00]} 47. Qe4 {[%clk 0:00:00]}  Qf6 {[%clk 0:00:00]} 48. f4 {[%clk 0:00:00]}  Qe6 {[%clk 0:00:00]} 49. Qxe6 {[%clk 0:00:00]}  fxe6 {[%clk 0:00:00]} 50. Kf3 {[%clk 0:00:00]}  Kf6 {[%clk 0:00:00]} 51. Ke4 {[%clk 0:00:00]}  Kf7 {[%clk 0:00:00]} 52. Ke5 {[%clk 0:00:00]}  Ke7 {[%clk 0:00:00]} 53. Kd4 {[%clk 0:00:00]}  Kd6 {[%clk 0:00:00]} 54. Ke4 {[%clk 0:00:00]}  Ke7 {[%clk 0:00:00]} 55. Ke5 {[%clk 0:00:00]}  Kf7 {[%clk 0:00:00]} 56. g4 {[%clk 0:00:00]}  hxg4 {[%clk 0:00:00]} 57. hxg4 {[%clk 0:00:00]}  Ke7 {[%clk 0:00:00]} 58. g5 {[%clk 0:00:00]}  Kd7 {[%clk 0:00:00]} 59. Kf6 {[%clk 0:00:00]}  Kd6 {[%clk 0:00:00]} 60. Kxg6 {[%clk 0:00:00]}  e5 {[%clk 0:00:00]} 61. fxe5+ {[%clk 0:00:00]}  Kxe5 {[%clk 0:00:00]} 62. Kf7 {[%clk 0:00:00]} 1-0


[Site "https://www.chess.com"]